fUSD/lending_fUSD_20260405
["ID","MTS","AMOUNT","RATE_DAILY","PERIOD"]
[419835873,1775407845298,-553.41835149,0.00014795,2]
[419835874,1775407845313,-150.0,0.000148,2]
[419835875,1775407845329,-150.0,0.000148,2]
[419835876,1775407845344,-2000.0,0.00014802,2]
[419835877,1775407845359,-478.15,0.00014834,2]
[419835878,1775407845374,-150.0,0.00014836,2]
[419835879,1775407845390,-518.71,0.00014851,2]
[419835880,1775407845405,-308.24,0.00014852,2]
[419835881,1775407845421,-6742.52,0.00014853,2]
[419835882,1775407845438,-28985.77,0.00014853,2]
[419835883,1775407845465,-2855.05,0.00014853,2]
[419835884,1775407845489,-478.15,0.00014885,2]
[419835885,1775407845513,-578.20924308,0.00014891,2]
[419835886,1775407845536,-201.93286099,0.00014891,2]
[419835887,1775407845557,-200.0,0.00014891,2]
[419835888,1775407845578,-695.39793187,0.00014891,2]
[419835889,1775407845598,-9211.34798985,0.00014891,2]
[419835890,1775407845618,-1377.42282659,0.00014891,2]
[419835891,1775407845636,-500.0,0.00014891,2]
[419835892,1775407845656,-500.0,0.00014891,2]
[419835893,1775407845672,-500.0,0.00014891,2]
[419835894,1775407845690,-500.0,0.00014891,2]
[419835895,1775407845705,-500.0,0.00014891,2]
[419835896,1775407845723,-500.0,0.00014891,2]
[419835897,1775407845738,-500.0,0.00014891,2]
[419835898,1775407845755,-151.0,0.00014891,2]
[419835899,1775407845770,-500.0,0.00014891,2]
[419835900,1775407845786,-151.0,0.00014891,2]
[419835901,1775407845801,-500.0,0.00014891,2]
[419835902,1775407845817,-151.0,0.00014891,2]
[419835903,1775407845833,-151.0,0.00014891,2]
[419835904,1775407845849,-500.0,0.00014891,2]
[419835905,1775407845865,-154.76515316,0.00014891,2]
[419835906,1775407845881,-500.0,0.00014891,2]
[419835907,1775407845896,-500.0,0.00014891,2]
[419835908,1775407845911,-1000.0,0.00014891,2]
[419835910,1775407845927,-500.0,0.00014891,2]
[419835913,1775407845942,-1000.0,0.00014891,2]
[419835916,1775407845957,-1000.0,0.00014891,2]
[419835918,1775407845972,-1000.0,0.00014891,2]
[419835920,1775407845987,-1000.0,0.00014891,2]
[419835921,1775407846002,-1000.0,0.00014891,2]
[419835922,1775407846018,-1000.0,0.00014891,2]
[419835923,1775407846033,-1000.0,0.00014891,2]
[419835924,1775407846047,-1000.0,0.00014891,2]
[419835925,1775407846063,-233.76893115,0.00014891,2]
[419835926,1775407846077,-201.93286099,0.00014891,2]
[419835927,1775407846093,-3000.0,0.00014891,2]
[419835928,1775407846109,-3000.0,0.00014891,2]
[419835929,1775407846124,-3000.0,0.00014891,2]
[419835930,1775407846139,-3000.0,0.00014891,2]
[419835931,1775407846154,-3000.0,0.00014891,2]
[419835932,1775407846168,-3000.0,0.00014891,2]
[419835933,1775407846184,-3000.0,0.00014891,2]
[419835934,1775407846199,-743.50770149,0.00014891,2]
[419835935,1775407846223,-3000.0,0.00014891,2]
[419835936,1775407846246,-3000.0,0.00014891,2]
[419835937,1775407846267,-3000.0,0.00014891,2]
[419835938,1775407846287,-3000.0,0.00014891,2]
[419835939,1775407846305,-3000.0,0.00014891,2]
[419835940,1775407846329,-151.0,0.00014891,2]
[419835941,1775407846350,-174.61919141,0.00014891,2]
[419835942,1775407846368,-329.2835348,0.00014891,2]
[419835943,1775407846386,-668.65185757,0.00014891,2]
[419835944,1775407846406,-170.0,0.00014891,2]
[419835945,1775407846423,-170.0,0.00014891,2]
[419835946,1775407846441,-170.0,0.00014891,2]
[419835947,1775407846458,-170.0,0.00014891,2]
[419835948,1775407846475,-170.0,0.00014891,2]
[419835949,1775407846493,-279.9045709,0.00014891,2]
[419835950,1775407846512,-1500.0,0.00014891,2]
[419835951,1775407846528,-170.0,0.00014891,2]
[419835952,1775407846546,-1500.0,0.00014891,2]
[419835953,1775407846562,-170.0,0.00014891,2]
[419835954,1775407846578,-1500.0,0.00014891,2]
[419835955,1775407846594,-170.0,0.00014891,2]
[419835956,1775407846611,-1500.0,0.00014891,2]
[419835957,1775407846627,-1500.0,0.00014891,2]
[419835958,1775407846642,-170.0,0.00014891,2]
[419835959,1775407846658,-170.0,0.00014891,2]
[419835960,1775407846674,-170.0,0.00014891,2]
[419835961,1775407846691,-170.0,0.00014891,2]
[419835962,1775407846706,-150.0,0.00014933,2]
[419835963,1775407846721,-150.0,0.00014933,2]
[419835964,1775407846737,-150.0,0.00014933,2]
[419835965,1775407846752,-1000.0,0.00014935,2]
[419835966,1775407846768,-500.0,0.00014938,2]
[419835967,1775407846783,-500.0,0.00014938,2]
[419835968,1775407846798,-9552.16786547,0.00014946,2]
[419835969,1775407846812,-500.0,0.00014946,2]
[419835970,1775407846828,-151.0,0.00014946,2]
[419835971,1775407846842,-8422.99193755,0.00014957,2]
[419835972,1775407846858,-871.95012592,0.00014957,2]
[419835973,1775407846872,-150.0,0.00014982,2]
[419835974,1775407846888,-478.15,0.00014986,2]
[419835975,1775407846902,-500.0,0.00015,2]
[419835976,1775407846917,-500.0,0.00015,2]
[419835977,1775407846931,-500.0,0.00015,2]
[419835978,1775407846945,-500.0,0.00015,2]
[419835979,1775407846960,-500.0,0.00015,2]
[419835980,1775407846982,-500.0,0.00015,2]
[419835981,1775407847000,-500.0,0.00015,2]
[419835982,1775407847019,-500.0,0.00015,2]
[419835983,1775407847037,-500.0,0.00015,2]
[419835984,1775407847053,-500.0,0.00015,2]
[419835985,1775407847068,-500.0,0.00015,2]
[419835986,1775407847084,-500.0,0.00015,2]
[419835988,1775407847102,-500.0,0.00015,2]
[419835991,1775407847117,-199.41,0.00015,2]
[419835994,1775407847132,-500.0,0.00015,2]
[419835996,1775407847147,-468.12,0.00015,2]
[419835999,1775407847162,-300.0,0.00015,2]
[419836002,1775407847177,-350.0,0.00015,2]
[419836004,1775407847193,-500.0,0.00015,2]
[419836007,1775407847209,-501.0,0.00015,2]
[419836010,1775407847224,-502.0,0.00015,2]
[419836012,1775407847239,-503.0,0.00015,2]
[419836013,1775407847254,-504.0,0.00015,2]
[419836014,1775407847267,-150.0,0.00015,2]
[419836015,1775407847282,-480.0,0.00015,2]
[419836016,1775407847297,-150.0,0.00015,2]
[419836017,1775407847311,-9905.5980765,0.00015001,2]
[419836018,1775407847325,-500.0,0.00015001,2]
[419836019,1775407847338,-151.0,0.00015001,2]
[419836021,1775407847353,-2000.0,0.00015015,2]
[419836023,1775407847366,-500.0,0.00015015,2]
[419836025,1775407847381,-500.0,0.00015015,2]
[419836026,1775407847394,-2000.0,0.00015015,2]
[419836027,1775407847407,-167.84,0.00015032,2]
[419836028,1775407847420,-478.15,0.00015039,2]
[419836029,1775407847434,-4293.65708406,0.00015043,2]
[419836030,1775407847447,-1500.0,0.00015046,2]
[419836031,1775407847462,-1500.0,0.00015046,2]
[419836032,1775407847475,-10272.10520533,0.00015056,2]
[419836033,1775407847488,-500.0,0.00015056,2]
[419836034,1775407847501,-151.0,0.00015056,2]
[419836035,1775407847514,-500.0,0.00015065,2]
[419836036,1775407847529,-500.0,0.00015065,2]
[419836037,1775407847545,-161.91170216,0.00015065,2]
[419836038,1775407847562,-160.34417201,0.00015065,2]
[419836039,1775407847580,-500.0,0.00015065,2]
[419836040,1775407847591,-500.0,0.00015065,2]
[419836041,1775407847601,-500.0,0.00015065,2]
[419836042,1775407847611,-500.0,0.00015065,2]
[419836043,1775407847621,-500.0,0.00015065,2]
[419836044,1775407847631,-500.0,0.00015065,2]
[419836045,1775407847641,-500.0,0.00015065,2]
[419836046,1775407847650,-500.0,0.00015065,2]
[419836047,1775407847660,-500.0,0.00015065,2]
[419836048,1775407847671,-515.7358709,0.00015065,2]
[419836049,1775407847681,-312.74353669,0.00015065,2]
[419836050,1775407847692,-160.7467095,0.00015065,2]
[419836051,1775407847702,-500.0,0.00015065,2]
[419836052,1775407847712,-607.20051974,0.00015065,2]
[419836053,1775407848347,-500.0,0.00015065,2]
[419836054,1775407848396,-202.64993829,0.00015065,2]
[419836055,1775407848427,-500.0,0.00015065,2]
[419836056,1775407848456,-500.50066882,0.00015065,2]
[419836057,1775407848466,-518.73332026,0.00015065,2]
[419836058,1775407848477,-569.20510167,0.00015065,2]
[419836059,1775407848487,-162.72924009,0.00015065,2]
[419836060,1775407848498,-500.0,0.00015065,2]
[419836061,1775407848510,-966.9,0.00015068,2]
[419836062,1775407848521,-900.0,0.00015068,2]
[419836063,1775407848530,-800.96674089,0.00015068,2]
[419836064,1775407848539,-1500.0,0.00015069,2]
[419836065,1775407848549,-478.15,0.00015091,2]
[419836066,1775407848559,-198.63,0.00015099,2]
[419836067,1775407848568,-10652.17309792,0.00015111,2]
[419836068,1775407848578,-500.0,0.00015111,2]
[419836069,1775407848587,-151.0,0.00015111,2]
[419836070,1775407848596,-150.0,0.00015127,2]
[419836071,1775407848605,-992.99993992,0.00015131,2]
[419836072,1775407848614,-569.46,0.00015141,2]
[419836073,1775407848623,-569.46,0.00015141,2]
[419836074,1775407848633,-569.46,0.00015141,2]
[419836075,1775407848642,-569.46,0.00015141,2]
[419836076,1775407848652,-569.46,0.00015141,2]
[419836077,1775407848661,-569.46,0.00015141,2]
[419836078,1775407848671,-569.46,0.00015141,2]
[419836079,1775407848682,-569.46,0.00015141,2]
[419836080,1775407848691,-569.51214758,0.00015141,2]
[419836081,1775407848700,-500.0,0.00015141,2]
[419836082,1775407848710,-307.6298975,0.00015141,2]
[419836083,1775407848719,-513.8,0.00015141,2]
[419836084,1775407848728,-513.8,0.00015141,2]
[419836085,1775407848737,-513.8,0.00015141,2]
[419836086,1775407848746,-513.8,0.00015141,2]
[419836087,1775407848755,-513.8,0.00015141,2]
[419836088,1775407848764,-513.8,0.00015141,2]
[419836089,1775407848774,-513.8,0.00015141,2]
[419836090,1775407848783,-513.8,0.00015141,2]
[419836091,1775407848792,-514.00918003,0.00015141,2]
[419836092,1775407848801,-500.0,0.00015141,2]
[419836093,1775407848810,-500.0,0.00015141,2]
[419836094,1775407848820,-500.0,0.00015141,2]
[419836095,1775407848830,-500.0,0.00015141,2]
[419836096,1775407848839,-500.0,0.00015141,2]
[419836097,1775407848856,-500.0,0.00015141,2]
[419836098,1775407848869,-500.0,0.00015141,2]
[419836099,1775407848879,-500.0,0.00015141,2]
[419836100,1775407848888,-201.67958324,0.00015141,2]
[419836101,1775407848898,-1353.7,0.00015141,2]
[419836102,1775407848908,-1353.7,0.00015141,2]
[419836103,1775407848918,-1353.7,0.00015141,2]
[419836104,1775407848928,-1353.7,0.00015141,2]
[419836105,1775407848938,-1353.7,0.00015141,2]
[419836106,1775407848947,-1353.7,0.00015141,2]
[419836107,1775407848957,-1353.7,0.00015141,2]
[419836108,1775407848966,-1353.7,0.00015141,2]
[419836109,1775407848976,-1353.91849701,0.00015141,2]
[419836110,1775407848985,-571.23,0.00015141,2]
[419836111,1775407848995,-571.23,0.00015141,2]
[419836112,1775407849004,-571.23,0.00015141,2]
[419836113,1775407849014,-571.23,0.00015141,2]
[419836114,1775407849024,-571.23,0.00015141,2]
[419836115,1775407849033,-571.23,0.00015141,2]
[419836116,1775407849043,-571.23,0.00015141,2]
[419836117,1775407849052,-571.23,0.00015141,2]
[419836118,1775407849062,-571.45648397,0.00015141,2]
[419836119,1775407849071,-500.0,0.00015141,2]
[419836120,1775407849081,-500.0,0.00015141,2]
[419836121,1775407849091,-503.82950636,0.00015141,2]
[419836122,1775407849100,-500.0,0.00015141,2]
[419836123,1775407849110,-500.0,0.00015141,2]
[419836124,1775407849119,-277.69,0.00015141,2]
[419836125,1775407849129,-500.0,0.00015141,2]
[419836126,1775407849138,-500.0,0.00015141,2]
[419836127,1775407849148,-500.0,0.00015141,2]
[419836128,1775407849157,-500.0,0.00015141,2]
[419836129,1775407849167,-500.0,0.00015141,2]
[419836130,1775407849177,-500.0,0.00015141,2]
[419836131,1775407849187,-500.0,0.00015141,2]
[419836132,1775407849196,-500.0,0.00015141,2]
[419836133,1775407849205,-500.0,0.00015141,2]
[419836134,1775407849215,-500.0,0.00015141,2]
[419836135,1775407849224,-500.0,0.00015141,2]
[419836136,1775407849234,-500.0,0.00015141,2]
[419836137,1775407849244,-500.0,0.00015141,2]
[419836138,1775407849254,-500.0,0.00015141,2]
[419836139,1775407849265,-500.0,0.00015141,2]
[419836140,1775407849275,-500.0,0.00015141,2]
[419836141,1775407849285,-500.0,0.00015141,2]
[419836142,1775407849297,-500.0,0.00015141,2]
[419836143,1775407849308,-500.0,0.00015141,2]
[419836144,1775407849319,-500.0,0.00015141,2]
[419836145,1775407849330,-500.0,0.00015141,2]
[419836146,1775407849341,-500.0,0.00015141,2]
[419836147,1775407849351,-500.0,0.00015141,2]
[419836148,1775407849363,-500.0,0.00015141,2]
[419836149,1775407849372,-500.0,0.00015141,2]
[419836150,1775407849382,-500.0,0.00015141,2]
[419836151,1775407849393,-500.0,0.00015141,2]
[419836152,1775407849405,-500.0,0.00015141,2]
[419836153,1775407849415,-500.0,0.00015141,2]
[419836154,1775407849424,-500.0,0.00015141,2]
[419836155,1775407849434,-500.0,0.00015141,2]
[419836156,1775407849445,-500.0,0.00015141,2]
[419836157,1775407849455,-500.0,0.00015141,2]
[419836158,1775407849466,-500.0,0.00015141,2]
[419836159,1775407849477,-500.0,0.00015141,2]
[419836160,1775407849487,-500.0,0.00015141,2]
[419836161,1775407849498,-500.0,0.00015141,2]
[419836162,1775407849509,-500.0,0.00015141,2]
[419836163,1775407849520,-500.0,0.00015141,2]
[419836164,1775407849531,-500.0,0.00015141,2]
[419836165,1775407849542,-500.0,0.00015141,2]
[419836166,1775407849553,-500.0,0.00015141,2]
[419836167,1775407849562,-500.0,0.00015141,2]
[419836168,1775407849573,-500.0,0.00015141,2]
[419836169,1775407849583,-500.0,0.00015141,2]
[419836170,1775407849593,-500.0,0.00015141,2]
[419836171,1775407849603,-500.0,0.00015141,2]
[419836172,1775407849612,-500.0,0.00015141,2]
[419836173,1775407849622,-500.0,0.00015141,2]
[419836174,1775407849631,-500.0,0.00015141,2]
[419836175,1775407849642,-500.0,0.00015141,2]
[419836176,1775407849651,-500.0,0.00015141,2]
[419836177,1775407849661,-500.0,0.00015141,2]
[419836178,1775407849671,-500.0,0.00015141,2]
[419836179,1775407849681,-500.0,0.00015141,2]
[419836180,1775407849694,-546.66091949,0.00015141,2]
[419836181,1775407849705,-500.0,0.00015141,2]
[419836182,1775407849716,-500.0,0.00015141,2]
[419836183,1775407849726,-566.1,0.00015141,2]
[419836184,1775407849738,-478.16,0.00015158,2]
[419836185,1775407849747,-165.53,0.00015158,2]
[419836186,1775407849757,-11046.30350255,0.00015166,2]
[419836187,1775407849767,-500.0,0.00015166,2]
[419836188,1775407849776,-151.0,0.00015166,2]
[419836189,1775407849785,-219.62,0.00015196,2]
[419836190,1775407849796,-1123.827409,0.00015198,2]
[419836191,1775407849806,-200.08683734,0.000152,2]
[419836192,1775407849816,-150.0,0.000152,2]
[419836193,1775407849826,-150.0,0.000152,2]
[419836194,1775407849835,-150.0,0.000152,2]
[419836195,1775407849844,-150.0,0.000152,2]
[419836196,1775407849854,-150.0,0.000152,2]
[419836197,1775407849863,-150.0,0.000152,2]
[419836198,1775407849872,-150.0,0.000152,2]
[419836199,1775407849882,-150.0,0.000152,2]
[419836200,1775407849892,-10000.0,0.00015205,2]
[419836201,1775407849901,-3687.13664485,0.00015221,2]
[419836202,1775407849911,-500.0,0.00015221,2]
[419836203,1775407849921,-151.0,0.00015221,2]
[419836204,1775407849931,-7015.56153483,0.00015233,2]
[419836205,1775407849942,-7794.24996149,0.00015233,2]
[419836206,1775407849952,-150.0,0.00015273,2]
[419836207,1775407849962,-500.0,0.00015276,2]
[419836208,1775407849972,-151.0,0.00015276,2]
[419836209,1775407849982,-6453.0,0.00015277,2]
[419836210,1775407849992,-1613.0,0.00015277,2]
[419836211,1775407850001,-10891.57,0.00015296,2]
[419836212,1775407850011,-504.0,0.00015304,3]
[419836213,1775407850020,-931.0,0.00015305,5]
[419836214,1775407850030,-198.6932975,0.00015305,5]
[419836215,1775407850040,-275.87,0.00015306,2]
[419836216,1775407850051,-500.0,0.00015331,2]
[419836217,1775407850062,-151.0,0.00015331,2]
[419836218,1775407850071,-2000.0,0.00015336,2]
[419836219,1775407850081,-2000.0,0.00015336,2]
[419836220,1775407850090,-2000.0,0.00015336,2]
[419836221,1775407850100,-2000.0,0.00015336,2]
[419836222,1775407850110,-2000.0,0.00015336,2]
[419836223,1775407850119,-2000.0,0.00015336,2]
[419836224,1775407850129,-2000.0,0.00015336,2]
[419836225,1775407850139,-2000.0,0.00015336,2]
[419836226,1775407850149,-2000.0,0.00015336,2]
[419836227,1775407850159,-2000.0,0.00015336,2]
[419836228,1775407850169,-2000.0,0.00015336,2]
[419836229,1775407850178,-2000.0,0.00015336,2]
[419836230,1775407850187,-2000.0,0.00015336,2]
[419836231,1775407850197,-2000.0,0.00015336,2]
[419836232,1775407850206,-2000.0,0.00015336,2]
[419836233,1775407850215,-2000.0,0.00015336,2]
[419836234,1775407850224,-2000.0,0.00015336,2]
[419836235,1775407850234,-966.9,0.00015342,2]
[419836236,1775407850243,-2000.0,0.00015342,2]
[419836237,1775407850252,-1143.48326881,0.00015342,2]
[419836238,1775407850261,-1381.20749087,0.00015342,2]
[419836239,1775407850271,-1171.96403511,0.00015342,2]
[419836240,1775407850280,-2000.0,0.00015342,2]
[419836241,1775407850290,-2000.0,0.00015342,2]
[419836242,1775407850299,-2000.0,0.00015342,2]
[419836243,1775407850308,-515.96545288,0.00015342,2]
[419836244,1775407850318,-347.07116371,0.00015342,2]
[419836245,1775407850328,-1753.85680119,0.00015342,2]
[419836246,1775407850337,-500.0,0.00015386,2]
[419836247,1775407850346,-151.0,0.00015386,2]
[419836248,1775407850355,-150.0,0.000154,2]
[419836249,1775407850365,-150.0,0.000154,2]
[419836250,1775407850374,-150.0,0.00015418,2]
[419836251,1775407850384,-5888.0,0.00015436,2]
[419836252,1775407850395,-209.40437684,0.00015439,2]
[419836253,1775407850404,-200.0,0.00015439,2]
[419836254,1775407850414,-1428.38747117,0.00015439,2]
[419836255,1775407850424,-209.40437684,0.00015439,2]
[419836256,1775407850434,-771.01748645,0.00015439,2]
[419836257,1775407850444,-181.08010149,0.00015439,2]
[419836258,1775407850453,-693.3919763,0.00015439,2]
[419836259,1775407850463,-290.26104003,0.00015439,2]
[419836260,1775407850472,-500.0,0.00015441,2]
[419836261,1775407850482,-151.0,0.00015441,2]
[419836262,1775407850493,-350.0,0.00015442,2]
[419836263,1775407850503,-2129.0,0.00015443,2]
[419836264,1775407850513,-518.71,0.00015445,2]
[419836265,1775407850523,-150.0,0.00015467,2]
[419836266,1775407850532,-150.0,0.00015467,2]
[419836267,1775407850542,-150.0,0.00015467,2]
[419836268,1775407850552,-8818.7,0.00015471,2]
[419836269,1775407850561,-2979.4,0.00015471,2]
[419836270,1775407850572,-1000.0,0.00015485,2]
[419836271,1775407850583,-1058.37452133,0.00015485,2]
[419836272,1775407850593,-350.0,0.00015487,3]
[419836273,1775407850604,-500.0,0.00015496,2]
[419836274,1775407850614,-151.0,0.00015496,2]
[419836275,1775407850624,-241.9425,0.000155,2]
[419836276,1775407850635,-350.0,0.000155,3]
[419836277,1775407850647,-1000.0,0.0001554,2]
[419836278,1775407850656,-150.0,0.00015564,2]
[419836279,1775407850666,-1262.51968471,0.00015594,2]
[419836280,1775407850676,-2000.0,0.00015594,2]
[419836281,1775407850686,-150.0,0.000156,2]
[419836282,1775407850698,-150.0,0.000156,2]
[419836283,1775407850707,-1000.0,0.00015613,2]
[419836284,1775407850716,-1000.0,0.00015613,2]
[419836285,1775407850727,-1000.0,0.00015613,2]
[419836286,1775407850737,-1000.0,0.00015613,2]
[419836287,1775407850747,-1000.0,0.00015613,2]
[419836288,1775407850757,-1000.0,0.00015613,2]
[419836289,1775407850766,-1000.0,0.00015613,2]
[419836290,1775407850776,-1000.0,0.00015613,2]
[419836291,1775407850788,-1000.0,0.00015613,2]
[419836292,1775407850799,-1000.0,0.00015613,2]
[419836293,1775407850808,-1000.0,0.00015613,2]
[419836294,1775407850818,-500.0,0.00015613,2]
[419836295,1775407850828,-500.99241895,0.00015613,2]
[419836296,1775407850837,-1000.0,0.00015613,2]
[419836297,1775407850847,-790.32775663,0.00015613,2]
[419836298,1775407850857,-966.96971614,0.00015616,2]
[419836299,1775407850866,-2000.0,0.00015617,2]
[419836300,1775407850875,-505.08190528,0.00015632,2]
[419836301,1775407850885,-5526.7148583,0.00015642,2]
[419836302,1775407850895,-85483.9046114,0.00015642,2]
[419836303,1775407850905,-350.0,0.0001565,2]
[419836304,1775407850914,-1002.54341355,0.0001568,2]
[419836305,1775407850924,-1042.46010662,0.0001568,2]
[419836306,1775407850934,-1048.067414,0.0001568,2]
[419836307,1775407850944,-1055.80064164,0.0001568,2]
[419836308,1775407850953,-1106.2384728,0.0001568,2]
[419836309,1775407850962,-1011.02057328,0.0001568,2]
[419836310,1775407850972,-1010.78892789,0.0001568,2]
[419836311,1775407850982,-1031.68895448,0.0001568,2]
[419836312,1775407850992,-1095.59010744,0.0001568,2]
[419836313,1775407851001,-1103.80793967,0.0001568,2]
[419836314,1775407851011,-1043.3783493,0.0001568,2]
[419836315,1775407851020,-1052.45715859,0.0001568,2]
[419836316,1775407851030,-1331.37942047,0.0001568,2]
[419836317,1775407851039,-4706.0,0.00015682,2]
[419836318,1775407851049,-1903.37,0.00015684,2]
[419836319,1775407851058,-167.9673,0.000157,2]
[419836320,1775407851068,-1173.58370412,0.00015701,2]
[419836321,1775407851077,-150.0,0.00015709,2]
[419836322,1775407851087,-433.16765094,0.00015723,2]
[419836323,1775407851096,-1000.0,0.0001573,2]
[419836324,1775407851106,-996.49996996,0.00015733,2]
[419836325,1775407851115,-150.0,0.00015733,2]
[419836326,1775407851125,-150.0,0.00015733,2]
[419836327,1775407851134,-150.0,0.00015733,2]
[419836328,1775407851143,-1000.0,0.00015737,2]
[419836329,1775407851153,-500.0,0.00015745,2]
[419836330,1775407851162,-1000.0,0.0001575,2]
[419836331,1775407851172,-665.87615404,0.0001575,2]
[419836332,1775407851182,-262.0,0.00015753,2]
[419836333,1775407851191,-1000.0,0.00015755,2]
[419836334,1775407851201,-219.62,0.00015758,2]
[419836335,1775407851210,-1000.0,0.00015763,2]
[419836336,1775407851219,-1000.0,0.00015775,2]
[419836337,1775407851229,-1000.0,0.00015777,2]
[419836338,1775407851238,-1000.0,0.00015781,2]
[419836339,1775407851248,-1000.0,0.00015784,2]
[419836340,1775407851258,-1000.0,0.00015787,2]
[419836341,1775407851268,-157.39168565,0.00015799,2]
[419836342,1775407851277,-150.0,0.000158,2]
[419836343,1775407851287,-150.0,0.000158,2]
[419836344,1775407851297,-167.9673,0.000158,2]
[419836345,1775407851308,-191.24484677,0.000158,2]
[419836346,1775407851317,-2000.0,0.00015801,2]
[419836347,1775407851326,-1000.0,0.0001581,2]
[419836348,1775407851336,-150.0,0.00015818,2]
[419836349,1775407851345,-5888.0,0.00015818,2]
[419836350,1775407851355,-665.87615402,0.00015825,2]
[419836351,1775407851364,-4706.0,0.00015833,2]
[419836352,1775407851374,-198.63,0.00015836,2]
[419836353,1775407851385,-166143.042,0.0001584,2]
[419836354,1775407851395,-2000.0,0.0001584,2]
[419836355,1775407851405,-2000.0,0.0001584,2]
[419836356,1775407851414,-225841.21728149,0.0001584,2]
[419836357,1775407851424,-1000.0,0.00015841,2]
[419836358,1775407851434,-2000.0,0.0001585,2]
[419836359,1775407851443,-191.24484675,0.0001585,2]
[419836360,1775407851452,-2000.0,0.0001585,2]
[419836361,1775407851462,-2000.0,0.0001585,2]
[419836362,1775407851472,-2000.0,0.0001585,2]
[419836363,1775407851483,-2000.0,0.0001585,2]
[419836364,1775407851493,-2000.0,0.0001585,2]
[419836365,1775407851505,-2000.0,0.0001585,2]
[419836366,1775407851515,-2000.0,0.0001585,2]
[419836367,1775407851525,-2000.0,0.0001585,2]
[419836368,1775407851535,-2000.0,0.0001585,2]
[419836369,1775407851827,-2000.0,0.0001585,2]
[419836370,1775407851838,-150.0,0.00015855,2]
[419836371,1775407851848,-2645.0,0.00015867,5]
[419836372,1775407851858,-3593.0,0.00015867,5]
[419836373,1775407851867,-198.62,0.00015873,2]
[419836374,1775407851877,-165.53,0.0001588,2]
[419836375,1775407851887,-150.0,0.00015881,2]
[419836376,1775407851897,-1000.0,0.0001589,2]
[419836377,1775407851910,-2000.0,0.0001589,2]
[419836378,1775407851919,-500.0,0.0001589,2]
[419836379,1775407851930,-2500.0,0.0001589,2]
[419836380,1775407851940,-2500.0,0.0001589,2]
[419836381,1775407851950,-2447.77606198,0.0001589,2]
[419836382,1775407851959,-150.0,0.00015891,2]
[419836383,1775407851970,-24264.72130868,0.00015899,2]
[419836384,1775407851979,-50154.49209134,0.000159,2]
[419836385,1775407851989,-1123.827409,0.000159,2]
[419836386,1775407851999,-150.0,0.000159,2]
[419836387,1775407852008,-150.0,0.000159,2]
[419836388,1775407852018,-150.0,0.000159,2]
[419836389,1775407852028,-10000.0,0.000159,2]
[419836390,1775407852038,-150.0,0.000159,2]
[419836391,1775407852047,-596.0,0.000159,2]
[419836392,1775407852057,-500.0,0.000159,2]
[419836393,1775407852067,-500.0,0.000159,2]
[419836394,1775407852076,-500.0,0.000159,2]
[419836395,1775407852086,-150.0,0.000159,2]
[419836396,1775407852095,-25000.0,0.000159,3]
[419836397,1775407852105,-150.0,0.000159,2]
[419836398,1775407852115,-167.9673,0.000159,2]